Workbook

Sheet datos
A1: -2475 | B1: ALEATORIO | C1: =$N$5 -> 100000 | D1: 0 | E1: 0 | G1: Net | H1: MaxDD | I1: PEOR CAP | J1: MCL | K1: RUINA | M1: Rellenar lo que tenga el fondo azul y pulsar "Calcular"
A2: -1000 | B2: =INDEX(A:A,RANDBETWEEN(1,$N$8)) -> -12.5 | C2: =IF(C1>$N$7,C1+B2,C1) -> 99987.5 | D2: =MAX($C$1:C2)-C2 -> 12.5 | E2: =IF(AND(B2<0,C2>$N$7),E1+1,0) -> 1 | G2: =OFFSET($C$1,$N$9-1,0)-$C$1 -> 11904.25 | H2: =MAX($D$1:OFFSET($D$1,$N$9-1,0)) -> 15804.5 | I2: =MIN($C$1:OFFSET($C$1,$N$9-1,0)) -> 88250 | J2: =MAX($E$1:OFFSET($E$1,$N$9-1,0)) -> 8 | K2: =IF(MIN($C$1:OFFSET($C$1,$N$9-1,0)) < $N$7,1,0) -> 0 | M2: Oscar G. Cagigas - 6 Febrero 2020
A3: -700 | B3: =INDEX(A:A,RANDBETWEEN(1,$N$8)) -> -3000 | C3: =IF(C2>$N$7,C2+B3,C2) -> 96987.5 | D3: =MAX($C$1:C3)-C3 -> 3012.5 | E3: =IF(AND(B3<0,C3>$N$7),E2+1,0) -> 2 | G3: 30287.92 | H3: 11055.78 | I3: 92157.5 | J3: 8 | K3: 0
A4: -1350 | B4: 1610 | C4: 98597.5 | D4: =MAX($C$1:C4)-C4 -> 1402.5 | E4: 0 | G4: 14383.75 | H4: 13007.5 | I4: 91900 | J4: 5 | K4: 0
A5: 1520 | B5: 1580 | C5: 100177.5 | D5: =MAX($C$1:C5)-C5 -> 0 | E5: 0 | G5: 41482.3 | H5: 10547.8 | I5: 95427.5 | J5: 6 | K5: 0 | M5: Capital inicial | N5: 100000
A6: -2411.98 | B6: 1487.5 | C6: 101665 | D6: =MAX($C$1:C6)-C6 -> 0 | E6: 0 | G6: -8037.7 | H6: 24190.2 | I6: 91322.3 | J6: 8 | K6: 0 | M6: Histor (años) | N6: 26
A7: -1750 | B7: -1112.5 | C7: 100552.5 | D7: =MAX($C$1:C7)-C7 -> 1112.5 | E7: 1 | G7: 34026.63 | H7: 18085.55 | I7: 95665 | J7: 12 | K7: 0 | M7: RUINA | N7: 70000
A8: 230 | B8: -1662.5 | C8: 98890 | D8: =MAX($C$1:C8)-C8 -> 2775 | E8: 2 | G8: 24842.99 | H8: 6466.8 | I8: 98720 | J8: 4 | K8: 0 | M8: Operaciones | N8: =COUNT(A:A) -> 1599
A9: -1420 | B9: -1270 | C9: 97620 | D9: =MAX($C$1:C9)-C9 -> 4045 | E9: 3 | G9: 38017.82 | H9: 15703.8 | I9: 100000 | J9: 6 | K9: 0 | M9: Ops por año | N9: =ROUND($N$8/$N$6,0) -> 62
A10: -1180 | B10: 1550 | C10: 99170 | D10: =MAX($C$1:C10)-C10 -> 2495 | E10: 0 | G10: 36008.7 | H10: 14085 | I10: 100000 | J10: 4 | K10: 0
A11: -1912.5 | B11: -900 | C11: 98270 | D11: =MAX($C$1:C11)-C11 -> 3395 | E11: 1 | G11: 6652.2 | H11: 29362.8 | I11: 88555.9 | J11: 6 | K11: 0
A12: 1520 | B12: -2212.5 | C12: 96057.5 | D12: =MAX($C$1:C12)-C12 -> 5607.5 | E12: 2 | G12: 21077.5 | H12: 16575 | I12: 90905 | J12: 8 | K12: 0
A13: -1030 | B13: 1640 | C13: 97697.5 | D13: =MAX($C$1:C13)-C13 -> 3967.5 | E13: 0 | G13: 54338.88 | H13: 8277.5 | I13: 95152.5 | J13: 9 | K13: 0
A14: -2410 | B14: -80 | C14: 97617.5 | D14: =MAX($C$1:C14)-C14 -> 4047.5 | E14: 1 | G14: 69955.21 | H14: 11771.5 | I14: 98270 | J14: 4 | K14: 0
A15: 1520 | B15: -1180 | C15: 96437.5 | D15: =MAX($C$1:C15)-C15 -> 5227.5 | E15: 2 | G15: 3323.25 | H15: 25721.75 | I15: 74278.25 | J15: 6 | K15: 0
A16: 1805.99 | B16: -2262.5 | C16: 94175 | D16: =MAX($C$1:C16)-C16 -> 7490 | E16: 3 | G16: 31711.82 | H16: 18683.23 | I16: 98587.5 | J16: 5 | K16: 0
A17: 50 | B17: -4100 | C17: 90075 | D17: =MAX($C$1:C17)-C17 -> 11590 | E17: 4 | G17: 69766 | H17: 6015 | I17: 98700 | J17: 4 | K17: 0
A18: -1180 | B18: -1825 | C18: 88250 | D18: =MAX($C$1:C18)-C18 -> 13415 | E18: 5 | G18: 53557.5 | H18: 6182.5 | I18: 96430 | J18: 6 | K18: 0
A19: -1725 | B19: 1050 | C19: 89300 | D19: =MAX($C$1:C19)-C19 -> 12365 | E19: 0 | G19: 20336.5 | H19: 11177.5 | I19: 100000 | J19: 7 | K19: 0
A20: -1900 | B20: 4040 | C20: 93340 | D20: =MAX($C$1:C20)-C20 -> 8325 | E20: 0 | G20: 3218.35 | H20: 16851.52 | I20: 91401.2 | J20: 9 | K20: 0
A21: 3380 | B21: -720 | C21: 92620 | D21: =MAX($C$1:C21)-C21 -> 9045 | E21: 1 | G21: 43114.27 | H21: 7732.5 | I21: 92842.5 | J21: 3 | K21: 0
A22: -700 | B22: -550 | C22: 92070 | D22: =MAX($C$1:C22)-C22 -> 9595 | E22: 2 | G22: 53878.8 | H22: 6802.5 | I22: 95087.5 | J22: 4 | K22: 0
A23: 360 | B23: 7062.5 | C23: 99132.5 | D23: =MAX($C$1:C23)-C23 -> 2532.5 | E23: 0 | G23: 9816 | H23: 11534.4 | I23: 88465.6 | J23: 5 | K23: 0
A24: 7850 | B24: -1025 | C24: 98107.5 | D24: =MAX($C$1:C24)-C24 -> 3557.5 | E24: 1 | G24: 5153.3 | H24: 35661.7 | I24: 90685 | J24: 8 | K24: 0
A25: -720 | B25: 3550 | C25: 101657.5 | D25: =MAX($C$1:C25)-C25 -> 7.5 | E25: 0 | G25: 7661.03 | H25: 26684 | I25: 73316 | J25: 5 | K25: 0
A26: 820 | B26: 14625 | C26: 116282.5 | D26: =MAX($C$1:C26)-C26 -> 0 | E26: 0 | G26: 36535.98 | H26: 7370 | I26: 93410 | J26: 5 | K26: 0
A27: -1690 | B27: 1700 | C27: 117982.5 | D27: =MAX($C$1:C27)-C27 -> 0 | E27: 0 | G27: -13672.5 | H27: 26036.2 | I27: 76933.8 | J27: 8 | K27: 0
A28: 600 | B28: 862.5 | C28: 118845 | D28: =MAX($C$1:C28)-C28 -> 0 | E28: 0 | G28: -31590.57 | H28: 31590.57 | I28: 68409.43 | J28: 13 | K28: 1
A29: -2240 | B29: 1150 | C29: 119995 | D29: =MAX($C$1:C29)-C29 -> 0 | E29: 0 | G29: 8844.39 | H29: 12143.01 | I29: 90586.99 | J29: 5 | K29: 0
A30: 4430 | B30: -1560 | C30: 118435 | D30: =MAX($C$1:C30)-C30 -> 1560 | E30: 1 | G30: 72893.25 | H30: 7000 | I30: 100000 | J30: 4 | K30: 0
A31: -610 | B31: -1430 | C31: 117005 | D31: =MAX($C$1:C31)-C31 -> 2990 | E31: 2 | G31: 65204.28 | H31: 11497.5 | I31: 91432.5 | J31: 6 | K31: 0
A32: -740 | B32: -1700 | C32: 115305 | D32: =MAX($C$1:C32)-C32 -> 4690 | E32: 3 | G32: 1078.18 | H32: 18138.02 | I32: 87343.18 | J32: 6 | K32: 0
A33: -840 | B33: -2200 | C33: 113105 | D33: =MAX($C$1:C33)-C33 -> 6890 | E33: 4 | G33: 51397.6 | H33: 15188.7 | I33: 84811.3 | J33: 4 | K33: 0
A34: 710 | B34: 830 | C34: 113935 | D34: =MAX($C$1:C34)-C34 -> 6060 | E34: 0 | G34: 39164.57 | H34: 8006.2 | I34: 99542.5 | J34: 4 | K34: 0
A35: 5060 | B35: -4987.5 | C35: 108947.5 | D35: =MAX($C$1:C35)-C35 -> 11047.5 | E35: 1 | G35: 5785.26 | H35: 14209.52 | I35: 85790.48 | J35: 6 | K35: 0
A36: -1960 | B36: -820 | C36: 108127.5 | D36: =MAX($C$1:C36)-C36 -> 11867.5 | E36: 2 | G36: 48579.92 | H36: 11293.9 | I36: 94877.5 | J36: 5 | K36: 0
A37: -750 | B37: 1470 | C37: 109597.5 | D37: =MAX($C$1:C37)-C37 -> 10397.5 | E37: 0 | G37: -6664.36 | H37: 24585.1 | I37: 90102.14 | J37: 9 | K37: 0
A38: 900 | B38: 3540 | C38: 113137.5 | D38: =MAX($C$1:C38)-C38 -> 6857.5 | E38: 0 | G38: 24835.71 | H38: 10792.6 | I38: 100000 | J38: 7 | K38: 0
A39: 20 | B39: 88 | C39: 113225.5 | D39: =MAX($C$1:C39)-C39 -> 6769.5 | E39: 0 | G39: 38569.02 | H39: 10836.98 | I39: 90043.7 | J39: 7 | K39: 0
A40: -1163 | B40: -340 | C40: 112885.5 | D40: =MAX($C$1:C40)-C40 -> 7109.5 | E40: 1 | G40: 62465.04 | H40: 7956.98 | I40: 99275 | J40: 6 | K40: 0
A41: 1540 | B41: 460 | C41: 113345.5 | D41: =MAX($C$1:C41)-C41 -> 6649.5 | E41: 0 | G41: 34693.18 | H41: 15386.82 | I41: 98915 | J41: 8 | K41: 0
A42: -900 | B42: -1360 | C42: 111985.5 | D42: =MAX($C$1:C42)-C42 -> 8009.5 | E42: 1 | G42: -11097.22 | H42: 28482.8 | I42: 78377.3 | J42: 6 | K42: 0
A43: 3720 | B43: 700 | C43: 112685.5 | D43: =MAX($C$1:C43)-C43 -> 7309.5 | E43: 0 | G43: -3037.1 | H43: 22212.8 | I43: 78764.7 | J43: 8 | K43: 0
A44: 1300 | B44: 1420 | C44: 114105.5 | D44: =MAX($C$1:C44)-C44 -> 5889.5 | E44: 0 | G44: 3808.5 | H44: 14325 | I44: 97185 | J44: 6 | K44: 0
A45: 230 | B45: -1650 | C45: 112455.5 | D45: =MAX($C$1:C45)-C45 -> 7539.5 | E45: 1 | G45: 1623 | H45: 31882.7 | I45: 100000 | J45: 9 | K45: 0
A46: -1700 | B46: 1700 | C46: 114155.5 | D46: =MAX($C$1:C46)-C46 -> 5839.5 | E46: 0 | G46: 26645.99 | H46: 14568.75 | I46: 91302.49 | J46: 7 | K46: 0
A47: -850 | B47: -970 | C47: 113185.5 | D47: =MAX($C$1:C47)-C47 -> 6809.5 | E47: 1 | G47: 105153.08 | H47: 6606.2 | I47: 96640 | J47: 6 | K47: 0
A48: 2780 | B48: -3500 | C48: 109685.5 | D48: =MAX($C$1:C48)-C48 -> 10309.5 | E48: 2 | G48: 62602.4 | H48: 11942.5 | I48: 98900 | J48: 5 | K48: 0
A49: 1500 | B49: -340 | C49: 109345.5 | D49: =MAX($C$1:C49)-C49 -> 10649.5 | E49: 3 | G49: 28392.07 | H49: 11652.98 | I49: 93136.3 | J49: 6 | K49: 0
A50: -1150 | B50: -175 | C50: 109170.5 | D50: =MAX($C$1:C50)-C50 -> 10824.5 | E50: 4 | G50: 39342.5 | H50: 17127.5 | I50: 100000 | J50: 6 | K50: 0
A51: 1100 | B51: -170 | C51: 109000.5 | D51: =MAX($C$1:C51)-C51 -> 10994.5 | E51: 5 | G51: 23178.28 | H51: 15227.5 | I51: 86705 | J51: 6 | K51: 0
A52: -1480 | B52: -1900 | C52: 107100.5 | D52: =MAX($C$1:C52)-C52 -> 12894.5 | E52: 6 | G52: 56943.5 | H52: 7859.9 | I52: 96625 | J52: 3 | K52: 0
A53: 6230 | B53: -1510 | C53: 105590.5 | D53: =MAX($C$1:C53)-C53 -> 14404.5 | E53: 7 | G53: 33307.58 | H53: 12633.3 | I53: 91087.5 | J53: 11 | K53: 0
A54: -1662 | B54: -1400 | C54: 104190.5 | D54: =MAX($C$1:C54)-C54 -> 15804.5 | E54: 8 | G54: 41754.15 | H54: 10250 | I54: 97575 | J54: 6 | K54: 0
A55: -1060 | B55: 500 | C55: 104690.5 | D55: =MAX($C$1:C55)-C55 -> 15304.5 | E55: 0 | G55: 11277.55 | H55: 10973.7 | I55: 94168.8 | J55: 6 | K55: 0
A56: 1050 | B56: -260 | C56: 104430.5 | D56: =MAX($C$1:C56)-C56 -> 15564.5 | E56: 1 | G56: 51809.35 | H56: 13991.75 | I56: 91208.25 | J56: 5 | K56: 0
A57: -976 | B57: 1520 | C57: 105950.5 | D57: =MAX($C$1:C57)-C57 -> 14044.5 | E57: 0 | G57: 20833.68 | H57: 9625 | I57: 100000 | J57: 4 | K57: 0
A58: -1690 | B58: -225 | C58: 105725.5 | D58: =MAX($C$1:C58)-C58 -> 14269.5 | E58: 1 | G58: -774.75 | H58: 24689.27 | I58: 87045.25 | J58: 11 | K58: 0
A59: -100 | B59: 3620 | C59: 109345.5 | D59: =MAX($C$1:C59)-C59 -> 10649.5 | E59: 0 | G59: 38178.5 | H59: 14220 | I59: 96737.5 | J59: 6 | K59: 0
A60: -3164 | B60: 1130 | C60: 110475.5 | D60: =MAX($C$1:C60)-C60 -> 9519.5 | E60: 0 | G60: -4641.39 | H60: 38749.69 | I60: 95358.61 | J60: 7 | K60: 0
A61: 1560 | B61: 118.75 | C61: 110594.25 | D61: =MAX($C$1:C61)-C61 -> 9400.75 | E61: 0 | G61: 72506.9 | H61: 11552.5 | I61: 99342 | J61: 9 | K61: 0
A62: -1940 | B62: 1310 | C62: 111904.25 | D62: =MAX($C$1:C62)-C62 -> 8090.75 | E62: 0 | G62: 64871.98 | H62: 3937.5 | I62: 97678.7 | J62: 2 | K62: 0
A63: 1700 | B63: 100 | C63: 112004.25 | D63: =MAX($C$1:C63)-C63 -> 7990.75 | E63: 0 | G63: 32621.6 | H63: 7225 | I63: 100000 | J63: 5 | K63: 0
A64: -440 | G64: 45942.23 | H64: 19200 | I64: 94774.73 | J64: 7 | K64: 0
A65: 1610 | G65: 35722.97 | H65: 26106.52 | I65: 98600 | J65: 7 | K65: 0
A66: 3380 | G66: 16737.58 | H66: 18947.6 | I66: 87456.38 | J66: 6 | K66: 0
A67: -400 | G67: 47883.7 | H67: 10015 | I67: 100000 | J67: 4 | K67: 0
A68: 1340 | G68: 29565.05 | H68: 11683.8 | I68: 99761.3 | J68: 5 | K68: 0
A69: 1100 | G69: 5608.8 | H69: 21433.7 | I69: 100000 | J69: 10 | K69: 0
A70: 160 | G70: 479.5 | H70: 18552.5 | I70: 91202 | J70: 4 | K70: 0
A71: 740 | G71: 33277.5 | H71: 13857.5 | I71: 100000 | J71: 9 | K71: 0
A72: -820 | G72: 58571.92 | H72: 11185.6 | I72: 99000 | J72: 4 | K72: 0
A73: -1300 | G73: 8392.52 | H73: 12354.5 | I73: 97576.2 | J73: 6 | K73: 0
A74: -1300 | G74: -1945.98 | H74: 29144.48 | I74: 70855.52 | J74: 7 | K74: 0
A75: -980 | G75: 45598 | H75: 8500 | I75: 99698 | J75: 5 | K75: 0
A76: -1420 | G76: 37629.5 | H76: 12755.5 | I76: 94293.8 | J76: 10 | K76: 0
A77: 88 | G77: 22554.02 | H77: 12860 | I77: 97011 | J77: 8 | K77: 0
A78: -1400 | G78: 34628.2 | H78: 16354.3 | I78: 84145.7 | J78: 7 | K78: 0
A79: -940 | G79: -642.95 | H79: 21596.9 | I79: 83022.32 | J79: 11 | K79: 0
A80: -2100 | G80: 18689.1 | H80: 6130.5 | I80: 95460 | J80: 4 | K80: 0
A81: 150 | G81: 35600.99 | H81: 17098.8 | I81: 82901.2 | J81: 7 | K81: 0
A82: 5775 | G82: 6738.3 | H82: 20513.7 | I82: 90553.8 | J82: 8 | K82: 0
A83: -1300 | G83: 18778.55 | H83: 10498.75 | I83: 89501.25 | J83: 6 | K83: 0
A84: -1974 | G84: 15971.7 | H84: 9857.99 | I84: 92975.71 | J84: 7 | K84: 0
A85: -2474 | G85: 46254.58 | H85: 8756.52 | I85: 93176.3 | J85: 5 | K85: 0
A86: -2080 | G86: 13696.72 | H86: 19238.8 | I86: 95939.4 | J86: 8 | K86: 0
A87: 890 | G87: -30251.8 | H87: 30251.8 | I87: 69748.2 | J87: 6 | K87: 1
A88: 1280 | G88: 23743.6 | H88: 10296.98 | I88: 99000 | J88: 7 | K88: 0
A89: -1480 | G89: 27782.25 | H89: 7022 | I89: 99172.25 | J89: 6 | K89: 0
A90: 312.5 | G90: 6422.98 | H90: 23785 | I90: 100000 | J90: 9 | K90: 0
A91: 10493 | G91: 22040 | H91: 9745 | I91: 100000 | J91: 3 | K91: 0
A92: 3337.98 | G92: 9758.5 | H92: 27176.5 | I92: 94173.5 | J92: 11 | K92: 0
A93: -2275 | G93: 43295.1 | H93: 6470 | I93: 97966.2 | J93: 4 | K93: 0
A94: -1350 | G94: 37523.8 | H94: 6082.5 | I94: 97862.5 | J94: 3 | K94: 0
A95: -450 | G95: 22278.1 | H95: 17182.5 | I95: 90696.9 | J95: 5 | K95: 0
A96: -730 | G96: 76379.12 | H96: 10490.2 | I96: 92289.8 | J96: 3 | K96: 0
A97: 2020 | G97: 51468.7 | H97: 9810 | I97: 100000 | J97: 6 | K97: 0
A98: 620 | G98: 797.02 | H98: 12650 | I98: 90442.02 | J98: 7 | K98: 0
A99: 1970 | G99: 18413.7 | H99: 14888.7 | I99: 92337.5 | J99: 8 | K99: 0
A100: 500 | G100: -12953.7 | H100: 31690 | I100: 74246.3 | J100: 7 | K100: 0
A101: 110 | G101: 80161.6 | H101: 8170 | I101: 96500 | J101: 4 | K101: 0
A102: -880 | G102: 3734.4 | H102: 17675 | I102: 93587.98 | J102: 5 | K102: 0
A103: 1600 | G103: 30338.25 | H103: 10850 | I103: 97412.5 | J103: 5 | K103: 0
A104: 1550 | G104: 33158.23 | H104: 12375 | I104: 88686.55 | J104: 6 | K104: 0
A105: -940 | G105: -6623.4 | H105: 34324.7 | I105: 88301.6 | J105: 8 | K105: 0
A106: -880 | G106: 50918.25 | H106: 10077.5 | I106: 92019.4 | J106: 9 | K106: 0
A107: -887.5 | G107: 52169.1 | H107: 8060 | I107: 100000 | J107: 3 | K107: 0
A108: -1360 | G108: 34201 | H108: 9206 | I108: 100000 | J108: 4 | K108: 0
A109: 1182.01 | G109: 35142.89 | H109: 15884.61 | I109: 86420.39 | J109: 4 | K109: 0
A110: -1930 | G110: 18922.22 | H110: 15629.77 | I110: 96879.49 | J110: 9 | K110: 0
A111: 650 | G111: 121184.8 | H111: 8100 | I111: 98887.5 | J111: 5 | K111: 0
A112: 710 | G112: 46688.5 | H112: 11645 | I112: 96093.5 | J112: 5 | K112: 0
A113: -20 | G113: 16997 | H113: 15792.6 | I113: 100000 | J113: 5 | K113: 0
A114: 300 | G114: 62585.89 | H114: 13843.8 | I114: 90694.69 | J114: 8 | K114: 0
A115: -1500 | G115: -11708.4 | H115: 16627.5 | I115: 87311.6 | J115: 10 | K115: 0
A116: -911.98 | G116: 31019.93 | H116: 10502.5 | I116: 89497.5 | J116: 5 | K116: 0
A117: -2860 | G117: 6529.57 | H117: 12061.48 | I117: 88418.52 | J117: 6 | K117: 0
A118: -1150 | G118: 25028.66 | H118: 9736.2 | I118: 98900 | J118: 4 | K118: 0
A119: 2587.98 | G119: 43861.77 | H119: 8456.98 | I119: 100000 | J119: 4 | K119: 0
A120: 4700 | G120: 22989.7 | H120: 11105 | I120: 95880 | J120: 5 | K120: 0
A121: -850 | G121: 76619.3 | H121: 9471.2 | I121: 93475 | J121: 5 | K121: 0
A122: 425 | G122: 47180.05 | H122: 16546.25 | I122: 100000 | J122: 6 | K122: 0
A123: 3860 | G123: 37433.3 | H123: 17370.5 | I123: 97730 | J123: 10 | K123: 0
A124: 5800 | G124: 35160.75 | H124: 10012.5 | I124: 100000 | J124: 5 | K124: 0
A125: 21420 | G125: 55395.31 | H125: 8113.7 | I125: 97962.5 | J125: 4 | K125: 0
A126: 3780 | G126: 61757.87 | H126: 21394.18 | I126: 99230 | J126: 5 | K126: 0
A127: 4350 | G127: 41039.8 | H127: 16612.5 | I127: 100000 | J127: 7 | K127: 0
A128: 776 | G128: 2223.3 | H128: 15761.9 | I128: 94498.8 | J128: 7 | K128: 0
A129: -450 | G129: 56698.5 | H129: 14154.9 | I129: 100000 | J129: 6 | K129: 0
A130: -1000 | G130: -4973.9 | H130: 17193.2 | I130: 94706.1 | J130: 5 | K130: 0
A131: -662.5 | G131: 31296.93 | H131: 15833.75 | I131: 98425 | J131: 5 | K131: 0
A132: 1340 | G132: 13200 | H132: 8402.5 | I132: 96520 | J132: 6 | K132: 0
A133: 1040 | G133: 29864.17 | H133: 11136.53 | I133: 89063.47 | J133: 6 | K133: 0
A134: -775 | G134: 40736.67 | H134: 10704.48 | I134: 98175 | J134: 5 | K134: 0
A135: 4400 | G135: 27297.5 | H135: 18757.5 | I135: 89535 | J135: 15 | K135: 0
A136: -1637.5 | G136: 70271.31 | H136: 10855 | I136: 97725 | J136: 5 | K136: 0
A137: -1562.5 | G137: -31256.2 | H137: 34686.2 | I137: 68743.8 | J137: 12 | K137: 1
A138: 1055.99 | G138: 15827.5 | H138: 20845 | I138: 98090 | J138: 7 | K138: 0
A139: 9340 | G139: -8724.75 | H139: 29118.5 | I139: 82655.25 | J139: 6 | K139: 0
A140: 4310 | G140: 528.82 | H140: 13277.5 | I140: 88397.52 | J140: 10 | K140: 0
A141: 3000 | G141: -30129.6 | H141: 37489.6 | I141: 69870.4 | J141: 8 | K141: 1
A142: 556 | G142: 39212.47 | H142: 12980 | I142: 96258.72 | J142: 6 | K142: 0
A143: 8900 | G143: 28460.16 | H143: 16388.85 | I143: 92317.55 | J143: 9 | K143: 0
A144: 1520 | G144: 48544.79 | H144: 5926.3 | I144: 96286.3 | J144: 4 | K144: 0
A145: 460 | G145: -30067.4 | H145: 30499.9 | I145: 69932.6 | J145: 7 | K145: 1
A146: 3620 | G146: 43838.5 | H146: 12584 | I146: 96695 | J146: 6 | K146: 0
A147: -1000 | G147: 27017.44 | H147: 9591.5 | I147: 100000 | J147: 4 | K147: 0
A148: 12100 | G148: 36052.92 | H148: 14338.8 | I148: 98800 | J148: 6 | K148: 0
A149: 2350 | G149: 34005.19 | H149: 8079.01 | I149: 94197.5 | J149: 4 | K149: 0
A150: -1250 | G150: -7629.9 | H150: 28622.4 | I150: 81773.9 | J150: 6 | K150: 0
A151: -68 | G151: 41719.12 | H151: 9954.9 | I151: 96280 | J151: 4 | K151: 0
A152: 4440 | G152: 14743.25 | H152: 13943.75 | I152: 98900 | J152: 4 | K152: 0
A153: -500 | G153: 46584.48 | H153: 16457.5 | I153: 98525.98 | J153: 7 | K153: 0
A154: -390 | G154: 36860.6 | H154: 12781.2 | I154: 93655 | J154: 7 | K154: 0
A155: 230 | G155: -25201.9 | H155: 37933.7 | I155: 71698.1 | J155: 8 | K155: 0
A156: -1131 | G156: 64351.2 | H156: 8460 | I156: 91540 | J156: 6 | K156: 0
A157: 25 | G157: 5623.55 | H157: 26028.8 | I157: 88256.1 | J157: 8 | K157: 0
A158: 3820 | G158: 4109.34 | H158: 27635 | I158: 80189.62 | J158: 8 | K158: 0
A159: -900 | G159: -8452.07 | H159: 18183.75 | I159: 84396.25 | J159: 5 | K159: 0
A160: 670 | G160: 47526.5 | H160: 10168.7 | I160: 95327.5 | J160: 5 | K160: 0
A161: 4400 | G161: -10409.05 | H161: 24580.3 | I161: 76629.7 | J161: 9 | K161: 0
A162: -1000 | G162: 17176.02 | H162: 12215 | I162: 96007.5 | J162: 5 | K162: 0
A163: -1882 | G163: 11394.66 | H163: 15692.72 | I163: 84307.28 | J163: 7 | K163: 0
A164: 1600 | G164: 29627.19 | H164: 11916.81 | I164: 92165 | J164: 4 | K164: 0
A165: 80 | G165: 25807.63 | H165: 31265.07 | I165: 94311.43 | J165: 6 | K165: 0
A166: -1200 | G166: 12522.98 | H166: 9545 | I166: 100000 | J166: 5 | K166: 0
A167: -450 | G167: -14367.01 | H167: 21816.48 | I167: 79189.51 | J167: 6 | K167: 0
A168: 5380 | G168: 35836.85 | H168: 9605 | I168: 93952.5 | J168: 6 | K168: 0
A169: 950 | G169: 62241.94 | H169: 9492.5 | I169: 100000 | J169: 4 | K169: 0
A170: 1180 | G170: 28871.02 | H170: 15840 | I170: 100000 | J170: 7 | K170: 0
A171: -1375 | G171: 1921.68 | H171: 19064.02 | I171: 80935.98 | J171: 8 | K171: 0
A172: 1670 | G172: 697.08 | H172: 24640.42 | I172: 80877.08 | J172: 8 | K172: 0
A173: -660 | G173: 62493.3 | H173: 7032.6 | I173: 98087.5 | J173: 6 | K173: 0
A174: -580 | G174: 11463.3 | H174: 20339.3 | I174: 100000 | J174: 6 | K174: 0
A175: -1140 | G175: 17015.05 | H175: 26911.7 | I175: 95130 | J175: 13 | K175: 0
A176: 3025 | G176: 55440.8 | H176: 10043.8 | I176: 98570 | J176: 6 | K176: 0
A177: -1000 | G177: 29318.7 | H177: 12416.3 | I177: 99868 | J177: 4 | K177: 0
A178: -2500 | G178: 26065.2 | H178: 7480 | I178: 92520 | J178: 5 | K178: 0
A179: -1950 | G179: 78225.55 | H179: 6211.98 | I179: 100000 | J179: 4 | K179: 0
A180: 6740 | G180: 35277.5 | H180: 8960 | I180: 99618.7 | J180: 4 | K180: 0
A181: -920 | G181: 37931.6 | H181: 14194.6 | I181: 93245 | J181: 7 | K181: 0
A182: 3000 | G182: -11993.6 | H182: 29362.58 | I182: 72858.9 | J182: 9 | K182: 0
A183: -1080 | G183: 54553.5 | H183: 11660 | I183: 96950 | J183: 4 | K183: 0
A184: 3275 | G184: 45188.05 | H184: 12071.25 | I184: 95033.75 | J184: 4 | K184: 0
A185: 780 | G185: 41930.18 | H185: 8360 | I185: 91640 | J185: 5 | K185: 0
A186: -1630 | G186: 226.4 | H186: 26881.2 | I186: 88006.3 | J186: 10 | K186: 0
A187: -1900 | G187: -20860.81 | H187: 32406.8 | I187: 76893.2 | J187: 14 | K187: 0
A188: 2280 | G188: 17366.13 | H188: 32764.9 | I188: 99175 | J188: 10 | K188: 0
A189: 10220 | G189: -15957.2 | H189: 23533.8 | I189: 76466.2 | J189: 9 | K189: 0
A190: -960 | G190: 24445.6 | H190: 22079.9 | I190: 100000 | J190: 11 | K190: 0
A191: 3540 | G191: 37465.78 | H191: 15867.7 | I191: 96272.3 | J191: 6 | K191: 0
A192: -60 | G192: 3230.75 | H192: 12233.22 | I192: 89704.28 | J192: 5 | K192: 0
A193: 1630 | G193: -1996.85 | H193: 39789.53 | I193: 74956.95 | J193: 9 | K193: 0
A194: -730 | G194: 30419.69 | H194: 8312.5 | I194: 96902.5 | J194: 5 | K194: 0
A195: 1020 | G195: 26052.62 | H195: 8659.4 | I195: 96690 | J195: 5 | K195: 0
A196: -170 | G196: 32274.74 | H196: 9002.5 | I196: 100000 | J196: 5 | K196: 0
A197: -600 | G197: 13741.78 | H197: 13842.5 | I197: 92832.5 | J197: 9 | K197: 0
A198: 1625 | G198: 46792.62 | H198: 8942.48 | I198: 98542.62 | J198: 4 | K198: 0
A199: 3290 | G199: 44699.8 | H199: 8510 | I199: 99187.5 | J199: 4 | K199: 0
A200: -2950 | G200: 15955.6 | H200: 18824.3 | I200: 99197.5 | J200: 6 | K200: 0
... 1399 more rows

Sheet ganancia
A1: =C1/500 -> 0.002 | B1: -33576.5 | C1: 1
A2: =C2/500 -> 0.004 | B2: -33475.75 | C2: 2
A3: 0.006 | B3: -31821.25 | C3: 3
A4: 0.008 | B4: -31590.57 | C4: 4
A5: 0.01 | B5: -31256.2 | C5: 5
A6: 0.012 | B6: -31099.52 | C6: 6
A7: 0.014 | B7: -30251.8 | C7: 7
A8: 0.016 | B8: -30137.45 | C8: 8
A9: 0.018 | B9: -30129.6 | C9: 9
A10: 0.02 | B10: -30067.4 | C10: 10
A11: 0.022 | B11: -27843.33 | C11: 11
A12: 0.024 | B12: -26020.2 | C12: 12
A13: 0.026 | B13: -25201.9 | C13: 13
A14: 0.028 | B14: -25047.38 | C14: 14
A15: 0.03 | B15: -23830.29 | C15: 15
A16: 0.032 | B16: -23309.96 | C16: 16
A17: 0.034 | B17: -20860.81 | C17: 17
A18: 0.036 | B18: -17711.18 | C18: 18
A19: 0.038 | B19: -17194.26 | C19: 19
A20: 0.04 | B20: -17000 | C20: 20
A21: 0.042 | B21: -16602.93 | C21: 21
A22: 0.044 | B22: -16070.2 | C22: 22
A23: 0.046 | B23: -15963.7 | C23: 23
A24: 0.048 | B24: -15957.2 | C24: 24 | E24: Percentil | F24: Valor | H24: La ganancia media es de | J24: =F25 -> 26275.7 | K24: dólares
A25: 0.05 | B25: -14367.01 | C25: 25 | E25: 0.5 | F25: =VLOOKUP(E25,$A$1:$B$500,2,TRUE) -> 26275.7 | H25: Con un 95% de confianza la ganancia será mayor de | L25: =F26 -> -14367.01 | M25: dólares
A26: 0.052 | B26: -14019.86 | C26: 26 | E26: 0.05 | F26: =VLOOKUP(E26,$A$1:$B$500,2,TRUE) -> -14367.01 | H26: Con un 95% de confianza la ganancia será menos de | L26: =F27 -> 70271.31 | M26: dólares
A27: 0.054 | B27: -13947.35 | C27: 27 | E27: 0.95 | F27: =VLOOKUP(E27,$A$1:$B$500,2,TRUE) -> 70271.31 | H27: La probabilidad de ganar | J27: =datos!$N$5 -> 100000 | K27: es del | L27: =1-OFFSET($A$1,VLOOKUP($J$27,$B$1:$C$500,2,TRUE),0) -> 0.01
A28: 0.056 | B28: -13672.5 | C28: 28 | H28: La probabilidad de ganar | J28: =datos!$N$5/2 -> 50000 | K28: es del | L28: =1-OFFSET($A$1,VLOOKUP($J$28,$B$1:$C$500,2,TRUE),0) -> 0.18
A29: 0.058 | B29: -12953.7 | C29: 29 | H29: La probabilidad de terminar el año en pérdidas es del | L29: =OFFSET($A$1,VLOOKUP(0,$B$1:$C$500,2,TRUE),0) -> 0.158
A30: 0.06 | B30: -11993.6 | C30: 30
A31: 0.062 | B31: -11929.98 | C31: 31
A32: 0.064 | B32: -11708.4 | C32: 32
A33: 0.066 | B33: -11418.23 | C33: 33
A34: 0.068 | B34: -11097.22 | C34: 34
A35: 0.07 | B35: -10409.05 | C35: 35
A36: 0.072 | B36: -10328.13 | C36: 36
A37: 0.074 | B37: -9672.65 | C37: 37
A38: 0.076 | B38: -9549.01 | C38: 38
A39: 0.078 | B39: -9048.78 | C39: 39
A40: 0.08 | B40: -9007.7 | C40: 40
A41: 0.082 | B41: -8724.75 | C41: 41
A42: 0.084 | B42: -8452.07 | C42: 42
A43: 0.086 | B43: -8430.05 | C43: 43
A44: 0.088 | B44: -8237.34 | C44: 44
A45: 0.09 | B45: -8154.3 | C45: 45
A46: 0.092 | B46: -8037.7 | C46: 46
A47: 0.094 | B47: -7629.9 | C47: 47
A48: 0.096 | B48: -7616.1 | C48: 48
A49: 0.098 | B49: -7352.4 | C49: 49
A50: 0.1 | B50: -6946.57 | C50: 50
A51: 0.102 | B51: -6919.18 | C51: 51
A52: 0.104 | B52: -6817.86 | C52: 52
A53: 0.106 | B53: -6816.66 | C53: 53
A54: 0.108 | B54: -6664.36 | C54: 54
A55: 0.11 | B55: -6623.4 | C55: 55
A56: 0.112 | B56: -6547.3 | C56: 56
A57: 0.114 | B57: -6299.55 | C57: 57
A58: 0.116 | B58: -6274.49 | C58: 58
A59: 0.118 | B59: -6157.84 | C59: 59
A60: 0.12 | B60: -5737.4 | C60: 60
A61: 0.122 | B61: -4973.9 | C61: 61
A62: 0.124 | B62: -4641.39 | C62: 62
A63: 0.126 | B63: -4099.65 | C63: 63
A64: 0.128 | B64: -4044.53 | C64: 64
A65: 0.13 | B65: -4038.02 | C65: 65
A66: =C66/500 -> 0.132 | B66: -3170.3 | C66: 66
A67: 0.134 | B67: -3037.1 | C67: 67
A68: 0.136 | B68: -2388.52 | C68: 68
A69: 0.138 | B69: -1996.85 | C69: 69
A70: 0.14 | B70: -1945.98 | C70: 70
A71: 0.142 | B71: -1731.51 | C71: 71
A72: 0.144 | B72: -774.75 | C72: 72
A73: 0.146 | B73: -642.95 | C73: 73
A74: 0.148 | B74: -544.64 | C74: 74
A75: 0.15 | B75: -542.85 | C75: 75
A76: 0.152 | B76: -528.75 | C76: 76
A77: 0.154 | B77: -515.27 | C77: 77
A78: 0.156 | B78: -186.87 | C78: 78
A79: 0.158 | B79: 226.4 | C79: 79
A80: 0.16 | B80: 479.5 | C80: 80
A81: 0.162 | B81: 528.82 | C81: 81
A82: 0.164 | B82: 532.1 | C82: 82
A83: 0.166 | B83: 697.08 | C83: 83
A84: 0.168 | B84: 726.75 | C84: 84
A85: 0.17 | B85: 797.02 | C85: 85
A86: 0.172 | B86: 962.5 | C86: 86
A87: 0.174 | B87: 1078.18 | C87: 87
A88: 0.176 | B88: 1155.55 | C88: 88
A89: 0.178 | B89: 1234.3 | C89: 89
A90: 0.18 | B90: 1557.15 | C90: 90
A91: 0.182 | B91: 1623 | C91: 91
A92: 0.184 | B92: 1819.15 | C92: 92
A93: 0.186 | B93: 1878.54 | C93: 93
A94: 0.188 | B94: 1921.68 | C94: 94
A95: 0.19 | B95: 2223.3 | C95: 95
A96: 0.192 | B96: 2636.2 | C96: 96
A97: 0.194 | B97: 3209.99 | C97: 97
A98: 0.196 | B98: 3218.35 | C98: 98
A99: 0.198 | B99: 3230.75 | C99: 99
A100: 0.2 | B100: 3247.09 | C100: 100
A101: 0.202 | B101: 3323.25 | C101: 101
A102: 0.204 | B102: 3734.4 | C102: 102
A103: 0.206 | B103: 3808.5 | C103: 103
A104: 0.208 | B104: 3960 | C104: 104
A105: 0.21 | B105: 4109.34 | C105: 105
A106: 0.212 | B106: 4455.15 | C106: 106
A107: 0.214 | B107: 4555.85 | C107: 107
A108: 0.216 | B108: 4565.3 | C108: 108
A109: 0.218 | B109: 4917.8 | C109: 109
A110: 0.22 | B110: 5153.3 | C110: 110
A111: 0.222 | B111: 5608.8 | C111: 111
A112: 0.224 | B112: 5623.55 | C112: 112
A113: 0.226 | B113: 5785.26 | C113: 113
A114: 0.228 | B114: 6055.3 | C114: 114
A115: 0.23 | B115: 6422.98 | C115: 115
A116: 0.232 | B116: 6529.57 | C116: 116
A117: 0.234 | B117: 6652.2 | C117: 117
A118: 0.236 | B118: 6738.3 | C118: 118
A119: 0.238 | B119: 6747.7 | C119: 119
A120: 0.24 | B120: 6923.47 | C120: 120
A121: 0.242 | B121: 7081.25 | C121: 121
A122: 0.244 | B122: 7603.5 | C122: 122
A123: 0.246 | B123: 7661.03 | C123: 123
A124: 0.248 | B124: 7831.58 | C124: 124
A125: 0.25 | B125: 7913 | C125: 125
A126: 0.252 | B126: 8300.74 | C126: 126
A127: 0.254 | B127: 8392.52 | C127: 127
A128: 0.256 | B128: 8697.6 | C128: 128
A129: 0.258 | B129: 8844.39 | C129: 129
A130: =C130/500 -> 0.26 | B130: 9044.02 | C130: 130
A131: 0.262 | B131: 9150.5 | C131: 131
A132: 0.264 | B132: 9158.7 | C132: 132
A133: 0.266 | B133: 9167.52 | C133: 133
A134: 0.268 | B134: 9376.77 | C134: 134
A135: 0.27 | B135: 9415.42 | C135: 135
A136: 0.272 | B136: 9530.35 | C136: 136
A137: 0.274 | B137: 9662 | C137: 137
A138: 0.276 | B138: 9758.5 | C138: 138
A139: 0.278 | B139: 9816 | C139: 139
A140: 0.28 | B140: 9928.52 | C140: 140
A141: 0.282 | B141: 10269.55 | C141: 141
A142: 0.284 | B142: 10451.13 | C142: 142
A143: 0.286 | B143: 10855.27 | C143: 143
A144: 0.288 | B144: 11259.23 | C144: 144
A145: 0.29 | B145: 11277.55 | C145: 145
A146: 0.292 | B146: 11394.66 | C146: 146
A147: 0.294 | B147: 11463.3 | C147: 147
A148: 0.296 | B148: 11515.1 | C148: 148
A149: 0.298 | B149: 11612.65 | C149: 149
A150: 0.3 | B150: 11721.74 | C150: 150
A151: 0.302 | B151: 11814.15 | C151: 151
A152: 0.304 | B152: 12011.17 | C152: 152
A153: 0.306 | B153: 12131.88 | C153: 153
A154: 0.308 | B154: 12292.95 | C154: 154
A155: 0.31 | B155: 12522.98 | C155: 155
A156: 0.312 | B156: 13154.04 | C156: 156
A157: 0.314 | B157: 13200 | C157: 157
A158: 0.316 | B158: 13696.72 | C158: 158
A159: 0.318 | B159: 13741.78 | C159: 159
A160: 0.32 | B160: 14203.62 | C160: 160
A161: 0.322 | B161: 14383.75 | C161: 161
A162: 0.324 | B162: 14424.12 | C162: 162
A163: 0.326 | B163: 14450.42 | C163: 163
A164: 0.328 | B164: 14554.48 | C164: 164
A165: 0.33 | B165: 14743.25 | C165: 165
A166: 0.332 | B166: 14766.45 | C166: 166
A167: 0.334 | B167: 15082.65 | C167: 167
A168: 0.336 | B168: 15123.17 | C168: 168
A169: 0.338 | B169: 15351.2 | C169: 169
A170: 0.34 | B170: 15392.2 | C170: 170
A171: 0.342 | B171: 15529.22 | C171: 171
A172: 0.344 | B172: 15719.72 | C172: 172
A173: 0.346 | B173: 15820.92 | C173: 173
A174: 0.348 | B174: 15827.5 | C174: 174
A175: 0.35 | B175: 15868.57 | C175: 175
A176: 0.352 | B176: 15955.6 | C176: 176
A177: 0.354 | B177: 15971.7 | C177: 177
A178: 0.356 | B178: 16315.1 | C178: 178
A179: 0.358 | B179: 16328.25 | C179: 179
A180: 0.36 | B180: 16570.88 | C180: 180
A181: 0.362 | B181: 16737.58 | C181: 181
A182: 0.364 | B182: 16894.75 | C182: 182
A183: 0.366 | B183: 16944.4 | C183: 183
A184: 0.368 | B184: 16997 | C184: 184
A185: 0.37 | B185: 17015.05 | C185: 185
A186: 0.372 | B186: 17148.75 | C186: 186
A187: 0.374 | B187: 17151.45 | C187: 187
A188: 0.376 | B188: 17176.02 | C188: 188
A189: 0.378 | B189: 17234.92 | C189: 189
A190: 0.38 | B190: 17355.73 | C190: 190
A191: 0.382 | B191: 17366.13 | C191: 191
A192: 0.384 | B192: 17613.6 | C192: 192
A193: 0.386 | B193: 17629.3 | C193: 193
A194: =C194/500 -> 0.388 | B194: 17635.34 | C194: 194
A195: 0.39 | B195: 17739.01 | C195: 195
A196: 0.392 | B196: 17755.38 | C196: 196
A197: 0.394 | B197: 17767.98 | C197: 197
A198: 0.396 | B198: 17863.56 | C198: 198
A199: 0.398 | B199: 18050.27 | C199: 199
A200: 0.4 | B200: 18376.98 | C200: 200
... 300 more rows

Sheet drawdown
A1: =C1/500 -> 0.002 | B1: 3937.5 | C1: 1
A2: =C2/500 -> 0.004 | B2: 4316.2 | C2: 2
A3: 0.006 | B3: 5470 | C3: 3
A4: 0.008 | B4: 5862.5 | C4: 4
A5: 0.01 | B5: 5924.9 | C5: 5
A6: 0.012 | B6: 5926.3 | C6: 6
A7: 0.014 | B7: 5930.1 | C7: 7
A8: 0.016 | B8: 6015 | C8: 8
A9: 0.018 | B9: 6082.5 | C9: 9
A10: 0.02 | B10: 6130.5 | C10: 10
A11: 0.022 | B11: 6182.5 | C11: 11
A12: 0.024 | B12: 6211.98 | C12: 12
A13: 0.026 | B13: 6335 | C13: 13
A14: 0.028 | B14: 6390 | C14: 14
A15: 0.03 | B15: 6466.8 | C15: 15
A16: 0.032 | B16: 6470 | C16: 16
A17: 0.034 | B17: 6606.2 | C17: 17
A18: 0.036 | B18: 6651.5 | C18: 18
A19: 0.038 | B19: 6802.5 | C19: 19
A20: 0.04 | B20: 7000 | C20: 20
A21: 0.042 | B21: 7022 | C21: 21
A22: 0.044 | B22: 7032.6 | C22: 22
A23: 0.046 | B23: 7092.5 | C23: 23
A24: 0.048 | B24: 7214.98 | C24: 24 | E24: Percentil | F24: Valor | H24: El drawdown medio es de | J24: =F25 -> 13594.2 | K24: dólares
A25: 0.05 | B25: 7225 | C25: 25 | E25: 0.5 | F25: =VLOOKUP(E25,$A$1:$B$500,2,TRUE) -> 13594.2 | H25: Con un 95% de confianza el drawdown será mayor de | L25: =F26 -> 7225 | M25: dólares
A26: 0.052 | B26: 7370 | C26: 26 | E26: 0.05 | F26: =VLOOKUP(E26,$A$1:$B$500,2,TRUE) -> 7225 | H26: Con un 95% de confianza el drawdown será menos de | L26: =F27 -> 29969.75 | M26: dólares
A27: 0.054 | B27: 7397.5 | C27: 27 | E27: 0.95 | F27: =VLOOKUP(E27,$A$1:$B$500,2,TRUE) -> 29969.75 | H27: La probabilidad de un drawdown de 30.000 dólares o más es del | M27: =1-OFFSET(A1,VLOOKUP(30000,$B$1:$C$500,2,TRUE),0) -> 0.048
A28: 0.056 | B28: 7409.35 | C28: 28 | H28: La probabilidad de un drawdown de 40.000 dólares o más es del | M28: =1-OFFSET(A1,VLOOKUP(40000,$B$1:$C$500,2,TRUE),0) -> 1
A29: 0.058 | B29: 7480 | C29: 29
A30: 0.06 | B30: 7561.2 | C30: 30
A31: 0.062 | B31: 7656.2 | C31: 31
A32: 0.064 | B32: 7656.3 | C32: 32
A33: 0.066 | B33: 7732.5 | C33: 33
A34: 0.068 | B34: 7777.5 | C34: 34
A35: 0.07 | B35: 7859.9 | C35: 35
A36: 0.072 | B36: 7900 | C36: 36
A37: 0.074 | B37: 7915.7 | C37: 37
A38: 0.076 | B38: 7925.1 | C38: 38
A39: 0.078 | B39: 7931.25 | C39: 39
A40: 0.08 | B40: 7935 | C40: 40
A41: 0.082 | B41: 7956.98 | C41: 41
A42: 0.084 | B42: 7958.28 | C42: 42
A43: 0.086 | B43: 7972.5 | C43: 43
A44: 0.088 | B44: 8006.2 | C44: 44
A45: 0.09 | B45: 8016.2 | C45: 45
A46: 0.092 | B46: 8060 | C46: 46
A47: 0.094 | B47: 8079.01 | C47: 47
A48: 0.096 | B48: 8088.8 | C48: 48
A49: 0.098 | B49: 8100 | C49: 49
A50: 0.1 | B50: 8113.7 | C50: 50
A51: 0.102 | B51: 8115.7 | C51: 51
A52: 0.104 | B52: 8120 | C52: 52
A53: 0.106 | B53: 8170 | C53: 53
A54: 0.108 | B54: 8270 | C54: 54
A55: 0.11 | B55: 8277.5 | C55: 55
A56: 0.112 | B56: 8288.7 | C56: 56
A57: 0.114 | B57: 8312.5 | C57: 57
A58: 0.116 | B58: 8360 | C58: 58
A59: 0.118 | B59: 8396.9 | C59: 59
A60: 0.12 | B60: 8402.5 | C60: 60
A61: 0.122 | B61: 8452.5 | C61: 61
A62: 0.124 | B62: 8456.98 | C62: 62
A63: 0.126 | B63: 8460 | C63: 63
A64: 0.128 | B64: 8470 | C64: 64
A65: 0.13 | B65: 8500 | C65: 65
A66: =C66/500 -> 0.132 | B66: 8510 | C66: 66
A67: 0.134 | B67: 8566.2 | C67: 67
A68: 0.136 | B68: 8575 | C68: 68
A69: 0.138 | B69: 8605.72 | C69: 69
A70: 0.14 | B70: 8616.2 | C70: 70
A71: 0.142 | B71: 8633.42 | C71: 71
A72: 0.144 | B72: 8659.4 | C72: 72
A73: 0.146 | B73: 8756.52 | C73: 73
A74: 0.148 | B74: 8792.5 | C74: 74
A75: 0.15 | B75: 8942.48 | C75: 75
A76: 0.152 | B76: 8956.8 | C76: 76
A77: 0.154 | B77: 8960 | C77: 77
A78: 0.156 | B78: 9002.5 | C78: 78
A79: 0.158 | B79: 9031.2 | C79: 79
A80: 0.16 | B80: 9035 | C80: 80
A81: 0.162 | B81: 9042.1 | C81: 81
A82: 0.164 | B82: 9129.02 | C82: 82
A83: 0.166 | B83: 9155 | C83: 83
A84: 0.168 | B84: 9157.5 | C84: 84
A85: 0.17 | B85: 9206 | C85: 85
A86: 0.172 | B86: 9210 | C86: 86
A87: 0.174 | B87: 9255 | C87: 87
A88: 0.176 | B88: 9315 | C88: 88
A89: 0.178 | B89: 9316.6 | C89: 89
A90: 0.18 | B90: 9359.31 | C90: 90
A91: 0.182 | B91: 9383.8 | C91: 91
A92: 0.184 | B92: 9398.8 | C92: 92
A93: 0.186 | B93: 9445 | C93: 93
A94: 0.188 | B94: 9457.5 | C94: 94
A95: 0.19 | B95: 9471.2 | C95: 95
A96: 0.192 | B96: 9492 | C96: 96
A97: 0.194 | B97: 9492.5 | C97: 97
A98: 0.196 | B98: 9496.25 | C98: 98
A99: 0.198 | B99: 9499.38 | C99: 99
A100: 0.2 | B100: 9502.5 | C100: 100
A101: 0.202 | B101: 9545 | C101: 101
A102: 0.204 | B102: 9562.5 | C102: 102
A103: 0.206 | B103: 9579.02 | C103: 103
A104: 0.208 | B104: 9591.5 | C104: 104
A105: 0.21 | B105: 9597.5 | C105: 105
A106: 0.212 | B106: 9605 | C106: 106
A107: 0.214 | B107: 9625 | C107: 107
A108: 0.216 | B108: 9636.25 | C108: 108
A109: 0.218 | B109: 9696.3 | C109: 109
A110: 0.22 | B110: 9726.2 | C110: 110
A111: 0.222 | B111: 9736.2 | C111: 111
A112: 0.224 | B112: 9745 | C112: 112
A113: 0.226 | B113: 9750.2 | C113: 113
A114: 0.228 | B114: 9810 | C114: 114
A115: 0.23 | B115: 9857.99 | C115: 115
A116: 0.232 | B116: 9871.5 | C116: 116
A117: 0.234 | B117: 9931.25 | C117: 117
A118: 0.236 | B118: 9942.5 | C118: 118
A119: 0.238 | B119: 9953.8 | C119: 119
A120: 0.24 | B120: 9954.9 | C120: 120
A121: 0.242 | B121: 9961.98 | C121: 121
A122: 0.244 | B122: 10012.5 | C122: 122
A123: 0.246 | B123: 10015 | C123: 123
A124: 0.248 | B124: 10043.8 | C124: 124
A125: 0.25 | B125: 10070.5 | C125: 125
A126: 0.252 | B126: 10077.5 | C126: 126
A127: 0.254 | B127: 10093.8 | C127: 127
A128: 0.256 | B128: 10131 | C128: 128
A129: 0.258 | B129: 10146.98 | C129: 129
A130: =C130/500 -> 0.26 | B130: 10168.7 | C130: 130
A131: 0.262 | B131: 10177.5 | C131: 131
A132: 0.264 | B132: 10227.6 | C132: 132
A133: 0.266 | B133: 10235.52 | C133: 133
A134: 0.268 | B134: 10250 | C134: 134
A135: 0.27 | B135: 10291.3 | C135: 135
A136: 0.272 | B136: 10296.98 | C136: 136
A137: 0.274 | B137: 10309.28 | C137: 137
A138: 0.276 | B138: 10362.5 | C138: 138
A139: 0.278 | B139: 10365 | C139: 139
A140: 0.28 | B140: 10367.5 | C140: 140
A141: 0.282 | B141: 10412.5 | C141: 141
A142: 0.284 | B142: 10456.2 | C142: 142
A143: 0.286 | B143: 10490.2 | C143: 143
A144: 0.288 | B144: 10498.75 | C144: 144
A145: 0.29 | B145: 10502.5 | C145: 145
A146: 0.292 | B146: 10530 | C146: 146
A147: 0.294 | B147: 10547.8 | C147: 147
A148: 0.296 | B148: 10585.49 | C148: 148
A149: 0.298 | B149: 10586.5 | C149: 149
A150: 0.3 | B150: 10704.48 | C150: 150
A151: 0.302 | B151: 10747 | C151: 151
A152: 0.304 | B152: 10751.7 | C152: 152
A153: 0.306 | B153: 10792.6 | C153: 153
A154: 0.308 | B154: 10800.68 | C154: 154
A155: 0.31 | B155: 10826 | C155: 155
A156: 0.312 | B156: 10836.98 | C156: 156
A157: 0.314 | B157: 10847.5 | C157: 157
A158: 0.316 | B158: 10850 | C158: 158
A159: 0.318 | B159: 10855 | C159: 159
A160: 0.32 | B160: 10882.5 | C160: 160
A161: 0.322 | B161: 10882.82 | C161: 161
A162: 0.324 | B162: 10942.5 | C162: 162
A163: 0.326 | B163: 10973.7 | C163: 163
A164: 0.328 | B164: 10990 | C164: 164
A165: 0.33 | B165: 11055.78 | C165: 165
A166: 0.332 | B166: 11084.5 | C166: 166
A167: 0.334 | B167: 11105 | C167: 167
A168: 0.336 | B168: 11136.53 | C168: 168
A169: 0.338 | B169: 11145.25 | C169: 169
A170: 0.34 | B170: 11147.5 | C170: 170
A171: 0.342 | B171: 11169.5 | C171: 171
A172: 0.344 | B172: 11177.5 | C172: 172
A173: 0.346 | B173: 11185.6 | C173: 173
A174: 0.348 | B174: 11195.56 | C174: 174
A175: 0.35 | B175: 11293.9 | C175: 175
A176: 0.352 | B176: 11327.98 | C176: 176
A177: 0.354 | B177: 11336.2 | C177: 177
A178: 0.356 | B178: 11379 | C178: 178
A179: 0.358 | B179: 11380.48 | C179: 179
A180: 0.36 | B180: 11445.78 | C180: 180
A181: 0.362 | B181: 11453.05 | C181: 181
A182: 0.364 | B182: 11463.52 | C182: 182
A183: 0.366 | B183: 11466.02 | C183: 183
A184: 0.368 | B184: 11476.2 | C184: 184
A185: 0.37 | B185: 11480.6 | C185: 185
A186: 0.372 | B186: 11497.5 | C186: 186
A187: 0.374 | B187: 11534.4 | C187: 187
A188: 0.376 | B188: 11552.5 | C188: 188
A189: 0.378 | B189: 11597.5 | C189: 189
A190: 0.38 | B190: 11645 | C190: 190
A191: 0.382 | B191: 11652.98 | C191: 191
A192: 0.384 | B192: 11660 | C192: 192
A193: 0.386 | B193: 11665 | C193: 193
A194: =C194/500 -> 0.388 | B194: 11683.8 | C194: 194
A195: 0.39 | B195: 11771.5 | C195: 195
A196: 0.392 | B196: 11853.08 | C196: 196
A197: 0.394 | B197: 11869.58 | C197: 197
A198: 0.396 | B198: 11903.7 | C198: 198
A199: 0.398 | B199: 11911.3 | C199: 199
A200: 0.4 | B200: 11916.81 | C200: 200
... 300 more rows

Sheet peorcap
A1: =C1/500 -> 0.002 | B1: 66423.5 | C1: 1
A2: =C2/500 -> 0.004 | B2: 66524.25 | C2: 2
A3: 0.006 | B3: 68178.75 | C3: 3
A4: 0.008 | B4: 68409.43 | C4: 4
A5: 0.01 | B5: 68743.8 | C5: 5
A6: 0.012 | B6: 68900.48 | C6: 6
A7: 0.014 | B7: 69748.2 | C7: 7
A8: 0.016 | B8: 69862.55 | C8: 8
A9: 0.018 | B9: 69870.4 | C9: 9
A10: 0.02 | B10: 69932.6 | C10: 10
A11: 0.022 | B11: 70855.52 | C11: 11
A12: 0.024 | B12: 71373.6 | C12: 12
A13: 0.026 | B13: 71698.1 | C13: 13
A14: 0.028 | B14: 72156.67 | C14: 14
A15: 0.03 | B15: 72858.9 | C15: 15
A16: 0.032 | B16: 73316 | C16: 16
A17: 0.034 | B17: 73827.55 | C17: 17
A18: 0.036 | B18: 73979.8 | C18: 18
A19: 0.038 | B19: 73987.55 | C19: 19
A20: 0.04 | B20: 74246.3 | C20: 20
A21: 0.042 | B21: 74278.25 | C21: 21
A22: 0.044 | B22: 74952.62 | C22: 22
A23: 0.046 | B23: 74956.95 | C23: 23
A24: 0.048 | B24: 75456.3 | C24: 24 | E24: Percentil | F24: Valor | H24: En promedio el capital caerá como mucho hasta los | L24: =F25 -> 95350 | M24: dólares
A25: 0.05 | B25: 75649.71 | C25: 25 | E25: 0.5 | F25: =VLOOKUP(E25,$A$1:$B$500,2,TRUE) -> 95350 | H25: Con un 95% de confianza el capital no caerá por debajo de los | M25: =F26 -> 75649.71 | N25: dólares
A26: 0.052 | B26: 75788.75 | C26: 26 | E26: 0.05 | F26: =VLOOKUP(E26,$A$1:$B$500,2,TRUE) -> 75649.71 | H26: La probabilidad de que el capital caiga por debajo del valor inicial es | M26: =OFFSET($A$1,VLOOKUP(datos!$N$5-1,$B$1:$C$500,2,TRUE),0) -> 0.838
A27: 0.054 | B27: 76058.75 | C27: 27 | E27: 0.95 | F27: =VLOOKUP(E27,$A$1:$B$500,2,TRUE) -> 100000 | H27: La probabilidad de que el capital caiga 20.000 es del | M27: =OFFSET($A$1,VLOOKUP(datos!$N$5-19999,$B$1:$C$500,2,TRUE),0) -> 0.092
A28: 0.056 | B28: 76225.95 | C28: 28 | H28: La probabilidad de que el capital caiga 40.000 es del | M28: =OFFSET($A$1,VLOOKUP(datos!$N$5-39999,$B$1:$C$500,2,TRUE),0) -> 
A29: 0.058 | B29: 76370.1 | C29: 29
A30: 0.06 | B30: 76466.2 | C30: 30
A31: 0.062 | B31: 76629.7 | C31: 31
A32: 0.064 | B32: 76817.24 | C32: 32
A33: 0.066 | B33: 76893.2 | C33: 33
A34: 0.068 | B34: 76933.8 | C34: 34
A35: 0.07 | B35: 77618.2 | C35: 35
A36: 0.072 | B36: 78053.1 | C36: 36
A37: 0.074 | B37: 78218.9 | C37: 37
A38: 0.076 | B38: 78377.3 | C38: 38
A39: 0.078 | B39: 78608.54 | C39: 39
A40: 0.08 | B40: 78694.43 | C40: 40
A41: 0.082 | B41: 78764.7 | C41: 41
A42: 0.084 | B42: 79189.51 | C42: 42
A43: 0.086 | B43: 79259.57 | C43: 43
A44: 0.088 | B44: 79456.32 | C44: 44
A45: 0.09 | B45: 79516 | C45: 45
A46: 0.092 | B46: 80189.62 | C46: 46
A47: 0.094 | B47: 80359.1 | C47: 47
A48: 0.096 | B48: 80390.48 | C48: 48
A49: 0.098 | B49: 80877.08 | C49: 49
A50: 0.1 | B50: 80935.98 | C50: 50
A51: 0.102 | B51: 80958.5 | C51: 51
A52: 0.104 | B52: 81357.51 | C52: 52
A53: 0.106 | B53: 81773.9 | C53: 53
A54: 0.108 | B54: 81840.14 | C54: 54
A55: 0.11 | B55: 81858.5 | C55: 55
A56: 0.112 | B56: 82025.75 | C56: 56
A57: 0.114 | B57: 82427.5 | C57: 57
A58: 0.116 | B58: 82655.25 | C58: 58
A59: 0.118 | B59: 82901.2 | C59: 59
A60: 0.12 | B60: 82903.49 | C60: 60
A61: 0.122 | B61: 82937.45 | C61: 61
A62: 0.124 | B62: 83000 | C62: 62
A63: 0.126 | B63: 83022.32 | C63: 63
A64: 0.128 | B64: 83085.36 | C64: 64
A65: 0.13 | B65: 83469.2 | C65: 65
A66: =C66/500 -> 0.132 | B66: 84145.7 | C66: 66
A67: 0.134 | B67: 84176.98 | C67: 67
A68: 0.136 | B68: 84210.12 | C68: 68
A69: 0.138 | B69: 84243.6 | C69: 69
A70: 0.14 | B70: 84307.28 | C70: 70
A71: 0.142 | B71: 84396.25 | C71: 71
A72: 0.144 | B72: 84452.55 | C72: 72
A73: 0.146 | B73: 84547.02 | C73: 73
A74: 0.148 | B74: 84679.3 | C74: 74
A75: 0.15 | B75: 84811.3 | C75: 75
A76: 0.152 | B76: 84951.5 | C76: 76
A77: 0.154 | B77: 84956.73 | C77: 77
A78: 0.156 | B78: 85285 | C78: 78
A79: 0.158 | B79: 85360 | C79: 79
A80: 0.16 | B80: 85448.44 | C80: 80
A81: 0.162 | B81: 85517.35 | C81: 81
A82: 0.164 | B82: 85790.48 | C82: 82
A83: 0.166 | B83: 86052.65 | C83: 83
A84: 0.168 | B84: 86259.5 | C84: 84
A85: 0.17 | B85: 86343.85 | C85: 85
A86: 0.172 | B86: 86420.39 | C86: 86
A87: 0.174 | B87: 86705 | C87: 87
A88: 0.176 | B88: 86783.7 | C88: 88
A89: 0.178 | B89: 86796.2 | C89: 89
A90: 0.18 | B90: 87045.25 | C90: 90
A91: 0.182 | B91: 87283.43 | C91: 91
A92: 0.184 | B92: 87292 | C92: 92
A93: 0.186 | B93: 87311.6 | C93: 93
A94: 0.188 | B94: 87343.18 | C94: 94
A95: 0.19 | B95: 87456.38 | C95: 95
A96: 0.192 | B96: 87685.02 | C96: 96
A97: 0.194 | B97: 87700.05 | C97: 97
A98: 0.196 | B98: 87960 | C98: 98
A99: 0.198 | B99: 88006.3 | C99: 99
A100: 0.2 | B100: 88025 | C100: 100
A101: 0.202 | B101: 88088.7 | C101: 101
A102: 0.204 | B102: 88256.1 | C102: 102
A103: 0.206 | B103: 88259.52 | C103: 103
A104: 0.208 | B104: 88301.6 | C104: 104
A105: 0.21 | B105: 88334.99 | C105: 105
A106: 0.212 | B106: 88397.52 | C106: 106
A107: 0.214 | B107: 88418.52 | C107: 107
A108: 0.216 | B108: 88465.6 | C108: 108
A109: 0.218 | B109: 88537.8 | C109: 109
A110: 0.22 | B110: 88555.9 | C110: 110
A111: 0.222 | B111: 88672.02 | C111: 111
A112: 0.224 | B112: 88686.55 | C112: 112
A113: 0.226 | B113: 88756.2 | C113: 113
A114: 0.228 | B114: 88955.2 | C114: 114
A115: 0.23 | B115: 89015.52 | C115: 115
A116: 0.232 | B116: 89063.47 | C116: 116
A117: 0.234 | B117: 89344.52 | C117: 117
A118: 0.236 | B118: 89417.2 | C118: 118
A119: 0.238 | B119: 89497.5 | C119: 119
A120: 0.24 | B120: 89501.25 | C120: 120
A121: 0.242 | B121: 89535 | C121: 121
A122: 0.244 | B122: 89704.28 | C122: 122
A123: 0.246 | B123: 89855.18 | C123: 123
A124: 0.248 | B124: 90043.7 | C124: 124
A125: 0.25 | B125: 90102.14 | C125: 125
A126: 0.252 | B126: 90352.22 | C126: 126
A127: 0.254 | B127: 90442.02 | C127: 127
A128: 0.256 | B128: 90513.8 | C128: 128
A129: 0.258 | B129: 90553.8 | C129: 129
A130: =C130/500 -> 0.26 | B130: 90586.99 | C130: 130
A131: 0.262 | B131: 90602.5 | C131: 131
A132: 0.264 | B132: 90685 | C132: 132
A133: 0.266 | B133: 90694.69 | C133: 133
A134: 0.268 | B134: 90696.9 | C134: 134
A135: 0.27 | B135: 90822.5 | C135: 135
A136: 0.272 | B136: 90842.5 | C136: 136
A137: 0.274 | B137: 90857.5 | C137: 137
A138: 0.276 | B138: 90905 | C138: 138
A139: 0.278 | B139: 90942.5 | C139: 139
A140: 0.28 | B140: 90951.22 | C140: 140
A141: 0.282 | B141: 91041.92 | C141: 141
A142: 0.284 | B142: 91087.5 | C142: 142
A143: 0.286 | B143: 91114.9 | C143: 143
A144: 0.288 | B144: 91134 | C144: 144
A145: 0.29 | B145: 91202 | C145: 145
A146: 0.292 | B146: 91208.25 | C146: 146
A147: 0.294 | B147: 91302.49 | C147: 147
A148: 0.296 | B148: 91302.5 | C148: 148
A149: 0.298 | B149: 91322.3 | C149: 149
A150: 0.3 | B150: 91355.78 | C150: 150
A151: 0.302 | B151: 91357.34 | C151: 151
A152: 0.304 | B152: 91401.2 | C152: 152
A153: 0.306 | B153: 91432.5 | C153: 153
A154: 0.308 | B154: 91540 | C154: 154
A155: 0.31 | B155: 91555.5 | C155: 155
A156: 0.312 | B156: 91565 | C156: 156
A157: 0.314 | B157: 91637.5 | C157: 157
A158: 0.316 | B158: 91640 | C158: 158
A159: 0.318 | B159: 91900 | C159: 159
A160: 0.32 | B160: 91916.98 | C160: 160
A161: 0.322 | B161: 91958.5 | C161: 161
A162: 0.324 | B162: 92012.5 | C162: 162
A163: 0.326 | B163: 92019.4 | C163: 163
A164: 0.328 | B164: 92020.51 | C164: 164
A165: 0.33 | B165: 92114.3 | C165: 165
A166: 0.332 | B166: 92157.5 | C166: 166
A167: 0.334 | B167: 92165 | C167: 167
A168: 0.336 | B168: 92289.8 | C168: 168
A169: 0.338 | B169: 92317.55 | C169: 169
A170: 0.34 | B170: 92327.45 | C170: 170
A171: 0.342 | B171: 92337.5 | C171: 171
A172: 0.344 | B172: 92341.3 | C172: 172
A173: 0.346 | B173: 92370.6 | C173: 173
A174: 0.348 | B174: 92396.8 | C174: 174
A175: 0.35 | B175: 92436.4 | C175: 175
A176: 0.352 | B176: 92458.72 | C176: 176
A177: 0.354 | B177: 92476 | C177: 177
A178: 0.356 | B178: 92520 | C178: 178
A179: 0.358 | B179: 92532.5 | C179: 179
A180: 0.36 | B180: 92588 | C180: 180
A181: 0.362 | B181: 92597.5 | C181: 181
A182: 0.364 | B182: 92832.5 | C182: 182
A183: 0.366 | B183: 92842.5 | C183: 183
A184: 0.368 | B184: 92940 | C184: 184
A185: 0.37 | B185: 92958.29 | C185: 185
A186: 0.372 | B186: 92975.71 | C186: 186
A187: 0.374 | B187: 92991.1 | C187: 187
A188: 0.376 | B188: 93054.95 | C188: 188
A189: 0.378 | B189: 93120 | C189: 189
A190: 0.38 | B190: 93136.3 | C190: 190
A191: 0.382 | B191: 93176.3 | C191: 191
A192: 0.384 | B192: 93186.2 | C192: 192
A193: 0.386 | B193: 93230 | C193: 193
A194: =C194/500 -> 0.388 | B194: 93245 | C194: 194
A195: 0.39 | B195: 93300 | C195: 195
A196: 0.392 | B196: 93325 | C196: 196
A197: 0.394 | B197: 93395 | C197: 197
A198: 0.396 | B198: 93410 | C198: 198
A199: 0.398 | B199: 93475 | C199: 199
A200: 0.4 | B200: 93492.5 | C200: 200
... 300 more rows

Sheet perdidas
A1: =C1/500 -> 0.002 | B1: 2 | C1: 1
A2: =C2/500 -> 0.004 | B2: 2 | C2: 2
A3: 0.006 | B3: 3 | C3: 3
A4: 0.008 | B4: 3 | C4: 4
A5: 0.01 | B5: 3 | C5: 5
A6: 0.012 | B6: 3 | C6: 6
A7: 0.014 | B7: 3 | C7: 7
A8: 0.016 | B8: 3 | C8: 8
A9: 0.018 | B9: 3 | C9: 9
A10: 0.02 | B10: 3 | C10: 10
A11: 0.022 | B11: 3 | C11: 11
A12: 0.024 | B12: 3 | C12: 12
A13: 0.026 | B13: 3 | C13: 13
A14: 0.028 | B14: 3 | C14: 14
A15: 0.03 | B15: 3 | C15: 15
A16: 0.032 | B16: 3 | C16: 16
A17: 0.034 | B17: 3 | C17: 17
A18: 0.036 | B18: 3 | C18: 18
A19: 0.038 | B19: 3 | C19: 19
A20: 0.04 | B20: 3 | C20: 20
A21: 0.042 | B21: 3 | C21: 21
A22: 0.044 | B22: 4 | C22: 22
A23: 0.046 | B23: 4 | C23: 23
A24: 0.048 | B24: 4 | C24: 24 | E24: Percentil | F24: Valor | H24: En promedio al año habrá | J24: =F25 -> 6 | K24: pérdidas consecutivas
A25: 0.05 | B25: 4 | C25: 25 | E25: 0.5 | F25: =VLOOKUP(E25,$A$1:$B$500,2,TRUE) -> 6 | H25: Con un 95% de confianza no habrá más de | L25: =F27 -> 10 | M25: perdidas seguidas
A26: 0.052 | B26: 4 | C26: 26 | E26: 0.05 | F26: =VLOOKUP(E26,$A$1:$B$500,2,TRUE) -> 4 | H26: Con un 95% de confianza al menos habrá | L26: =F26 -> 4 | M26: perdidas seguidas
A27: 0.054 | B27: 4 | C27: 27 | E27: 0.95 | F27: =VLOOKUP(E27,$A$1:$B$500,2,TRUE) -> 10 | H27: La probabilidad de tener 10 pérdidas seguidas o más es del | M27: =1-OFFSET($A$1,VLOOKUP(9.9,$B$1:$C$500,2,TRUE),0) -> 0.058
A28: 0.056 | B28: 4 | C28: 28 | H28: La probabilidad de tener 5 pérdidas seguidas o más es del | M28: =1-OFFSET($A$1,VLOOKUP(4.9,$B$1:$C$500,2,TRUE),0) -> 0.768
A29: 0.058 | B29: 4 | C29: 29
A30: 0.06 | B30: 4 | C30: 30
A31: 0.062 | B31: 4 | C31: 31
A32: 0.064 | B32: 4 | C32: 32
A33: 0.066 | B33: 4 | C33: 33
A34: 0.068 | B34: 4 | C34: 34
A35: 0.07 | B35: 4 | C35: 35
A36: 0.072 | B36: 4 | C36: 36
A37: 0.074 | B37: 4 | C37: 37
A38: 0.076 | B38: 4 | C38: 38
A39: 0.078 | B39: 4 | C39: 39
A40: 0.08 | B40: 4 | C40: 40
A41: 0.082 | B41: 4 | C41: 41
A42: 0.084 | B42: 4 | C42: 42
A43: 0.086 | B43: 4 | C43: 43
A44: 0.088 | B44: 4 | C44: 44
A45: 0.09 | B45: 4 | C45: 45
A46: 0.092 | B46: 4 | C46: 46
A47: 0.094 | B47: 4 | C47: 47
A48: 0.096 | B48: 4 | C48: 48
A49: 0.098 | B49: 4 | C49: 49
A50: 0.1 | B50: 4 | C50: 50
A51: 0.102 | B51: 4 | C51: 51
A52: 0.104 | B52: 4 | C52: 52
A53: 0.106 | B53: 4 | C53: 53
A54: 0.108 | B54: 4 | C54: 54
A55: 0.11 | B55: 4 | C55: 55
A56: 0.112 | B56: 4 | C56: 56
A57: 0.114 | B57: 4 | C57: 57
A58: 0.116 | B58: 4 | C58: 58
A59: 0.118 | B59: 4 | C59: 59
A60: 0.12 | B60: 4 | C60: 60
A61: 0.122 | B61: 4 | C61: 61
A62: 0.124 | B62: 4 | C62: 62
A63: 0.126 | B63: 4 | C63: 63
A64: 0.128 | B64: 4 | C64: 64
A65: 0.13 | B65: 4 | C65: 65
A66: =C66/500 -> 0.132 | B66: 4 | C66: 66
A67: 0.134 | B67: 4 | C67: 67
A68: 0.136 | B68: 4 | C68: 68
A69: 0.138 | B69: 4 | C69: 69
A70: 0.14 | B70: 4 | C70: 70
A71: 0.142 | B71: 4 | C71: 71
A72: 0.144 | B72: 4 | C72: 72
A73: 0.146 | B73: 4 | C73: 73
A74: 0.148 | B74: 4 | C74: 74
A75: 0.15 | B75: 4 | C75: 75
A76: 0.152 | B76: 4 | C76: 76
A77: 0.154 | B77: 4 | C77: 77
A78: 0.156 | B78: 4 | C78: 78
A79: 0.158 | B79: 4 | C79: 79
A80: 0.16 | B80: 4 | C80: 80
A81: 0.162 | B81: 4 | C81: 81
A82: 0.164 | B82: 4 | C82: 82
A83: 0.166 | B83: 4 | C83: 83
A84: 0.168 | B84: 4 | C84: 84
A85: 0.17 | B85: 4 | C85: 85
A86: 0.172 | B86: 4 | C86: 86
A87: 0.174 | B87: 4 | C87: 87
A88: 0.176 | B88: 4 | C88: 88
A89: 0.178 | B89: 4 | C89: 89
A90: 0.18 | B90: 4 | C90: 90
A91: 0.182 | B91: 4 | C91: 91
A92: 0.184 | B92: 4 | C92: 92
A93: 0.186 | B93: 4 | C93: 93
A94: 0.188 | B94: 4 | C94: 94
A95: 0.19 | B95: 4 | C95: 95
A96: 0.192 | B96: 4 | C96: 96
A97: 0.194 | B97: 4 | C97: 97
A98: 0.196 | B98: 4 | C98: 98
A99: 0.198 | B99: 4 | C99: 99
A100: 0.2 | B100: 4 | C100: 100
A101: 0.202 | B101: 4 | C101: 101
A102: 0.204 | B102: 4 | C102: 102
A103: 0.206 | B103: 4 | C103: 103
A104: 0.208 | B104: 4 | C104: 104
A105: 0.21 | B105: 4 | C105: 105
A106: 0.212 | B106: 4 | C106: 106
A107: 0.214 | B107: 4 | C107: 107
A108: 0.216 | B108: 4 | C108: 108
A109: 0.218 | B109: 4 | C109: 109
A110: 0.22 | B110: 4 | C110: 110
A111: 0.222 | B111: 4 | C111: 111
A112: 0.224 | B112: 4 | C112: 112
A113: 0.226 | B113: 4 | C113: 113
A114: 0.228 | B114: 4 | C114: 114
A115: 0.23 | B115: 4 | C115: 115
A116: 0.232 | B116: 5 | C116: 116
A117: 0.234 | B117: 5 | C117: 117
A118: 0.236 | B118: 5 | C118: 118
A119: 0.238 | B119: 5 | C119: 119
A120: 0.24 | B120: 5 | C120: 120
A121: 0.242 | B121: 5 | C121: 121
A122: 0.244 | B122: 5 | C122: 122
A123: 0.246 | B123: 5 | C123: 123
A124: 0.248 | B124: 5 | C124: 124
A125: 0.25 | B125: 5 | C125: 125
A126: 0.252 | B126: 5 | C126: 126
A127: 0.254 | B127: 5 | C127: 127
A128: 0.256 | B128: 5 | C128: 128
A129: 0.258 | B129: 5 | C129: 129
A130: =C130/500 -> 0.26 | B130: 5 | C130: 130
A131: 0.262 | B131: 5 | C131: 131
A132: 0.264 | B132: 5 | C132: 132
A133: 0.266 | B133: 5 | C133: 133
A134: 0.268 | B134: 5 | C134: 134
A135: 0.27 | B135: 5 | C135: 135
A136: 0.272 | B136: 5 | C136: 136
A137: 0.274 | B137: 5 | C137: 137
A138: 0.276 | B138: 5 | C138: 138
A139: 0.278 | B139: 5 | C139: 139
A140: 0.28 | B140: 5 | C140: 140
A141: 0.282 | B141: 5 | C141: 141
A142: 0.284 | B142: 5 | C142: 142
A143: 0.286 | B143: 5 | C143: 143
A144: 0.288 | B144: 5 | C144: 144
A145: 0.29 | B145: 5 | C145: 145
A146: 0.292 | B146: 5 | C146: 146
A147: 0.294 | B147: 5 | C147: 147
A148: 0.296 | B148: 5 | C148: 148
A149: 0.298 | B149: 5 | C149: 149
A150: 0.3 | B150: 5 | C150: 150
A151: 0.302 | B151: 5 | C151: 151
A152: 0.304 | B152: 5 | C152: 152
A153: 0.306 | B153: 5 | C153: 153
A154: 0.308 | B154: 5 | C154: 154
A155: 0.31 | B155: 5 | C155: 155
A156: 0.312 | B156: 5 | C156: 156
A157: 0.314 | B157: 5 | C157: 157
A158: 0.316 | B158: 5 | C158: 158
A159: 0.318 | B159: 5 | C159: 159
A160: 0.32 | B160: 5 | C160: 160
A161: 0.322 | B161: 5 | C161: 161
A162: 0.324 | B162: 5 | C162: 162
A163: 0.326 | B163: 5 | C163: 163
A164: 0.328 | B164: 5 | C164: 164
A165: 0.33 | B165: 5 | C165: 165
A166: 0.332 | B166: 5 | C166: 166
A167: 0.334 | B167: 5 | C167: 167
A168: 0.336 | B168: 5 | C168: 168
A169: 0.338 | B169: 5 | C169: 169
A170: 0.34 | B170: 5 | C170: 170
A171: 0.342 | B171: 5 | C171: 171
A172: 0.344 | B172: 5 | C172: 172
A173: 0.346 | B173: 5 | C173: 173
A174: 0.348 | B174: 5 | C174: 174
A175: 0.35 | B175: 5 | C175: 175
A176: 0.352 | B176: 5 | C176: 176
A177: 0.354 | B177: 5 | C177: 177
A178: 0.356 | B178: 5 | C178: 178
A179: 0.358 | B179: 5 | C179: 179
A180: 0.36 | B180: 5 | C180: 180
A181: 0.362 | B181: 5 | C181: 181
A182: 0.364 | B182: 5 | C182: 182
A183: 0.366 | B183: 5 | C183: 183
A184: 0.368 | B184: 5 | C184: 184
A185: 0.37 | B185: 5 | C185: 185
A186: 0.372 | B186: 5 | C186: 186
A187: 0.374 | B187: 5 | C187: 187
A188: 0.376 | B188: 5 | C188: 188
A189: 0.378 | B189: 5 | C189: 189
A190: 0.38 | B190: 5 | C190: 190
A191: 0.382 | B191: 5 | C191: 191
A192: 0.384 | B192: 5 | C192: 192
A193: 0.386 | B193: 5 | C193: 193
A194: =C194/500 -> 0.388 | B194: 5 | C194: 194
A195: 0.39 | B195: 5 | C195: 195
A196: 0.392 | B196: 5 | C196: 196
A197: 0.394 | B197: 5 | C197: 197
A198: 0.396 | B198: 5 | C198: 198
A199: 0.398 | B199: 5 | C199: 199
A200: 0.4 | B200: 5 | C200: 200
... 300 more rows

Sheet ruina
A1: =C1/500 -> 0.002 | B1: 0 | C1: 1
A2: =C2/500 -> 0.004 | B2: 0 | C2: 2
A3: 0.006 | B3: 0 | C3: 3
A4: 0.008 | B4: 0 | C4: 4
A5: 0.01 | B5: 0 | C5: 5
A6: 0.012 | B6: 0 | C6: 6
A7: 0.014 | B7: 0 | C7: 7
A8: 0.016 | B8: 0 | C8: 8
A9: 0.018 | B9: 0 | C9: 9
A10: 0.02 | B10: 0 | C10: 10
A11: 0.022 | B11: 0 | C11: 11
A12: 0.024 | B12: 0 | C12: 12
A13: 0.026 | B13: 0 | C13: 13
A14: 0.028 | B14: 0 | C14: 14
A15: 0.03 | B15: 0 | C15: 15
A16: 0.032 | B16: 0 | C16: 16
A17: 0.034 | B17: 0 | C17: 17
A18: 0.036 | B18: 0 | C18: 18
A19: 0.038 | B19: 0 | C19: 19
A20: 0.04 | B20: 0 | C20: 20
A21: 0.042 | B21: 0 | C21: 21
A22: 0.044 | B22: 0 | C22: 22
A23: 0.046 | B23: 0 | C23: 23
A24: 0.048 | B24: 0 | C24: 24 | E24: Percentil | F24: Valor
A25: 0.05 | B25: 0 | C25: 25 | E25: 0.5 | F25: =VLOOKUP(E25,$A$1:$B$500,2,TRUE) -> 0 | H25: La probabilidad de RUINA es del | K25: =SUM($B$1:$B$500)/500 -> 0.02
A26: 0.052 | B26: 0 | C26: 26 | E26: 0.05 | F26: =VLOOKUP(E26,$A$1:$B$500,2,TRUE) -> 0
A27: 0.054 | B27: 0 | C27: 27 | E27: 0.95 | F27: =VLOOKUP(E27,$A$1:$B$500,2,TRUE) -> 0
A28: 0.056 | B28: 0 | C28: 28
A29: 0.058 | B29: 0 | C29: 29
A30: 0.06 | B30: 0 | C30: 30
A31: 0.062 | B31: 0 | C31: 31
A32: 0.064 | B32: 0 | C32: 32
A33: 0.066 | B33: 0 | C33: 33
A34: 0.068 | B34: 0 | C34: 34
A35: 0.07 | B35: 0 | C35: 35
A36: 0.072 | B36: 0 | C36: 36
A37: 0.074 | B37: 0 | C37: 37
A38: 0.076 | B38: 0 | C38: 38
A39: 0.078 | B39: 0 | C39: 39
A40: 0.08 | B40: 0 | C40: 40
A41: 0.082 | B41: 0 | C41: 41
A42: 0.084 | B42: 0 | C42: 42
A43: 0.086 | B43: 0 | C43: 43
A44: 0.088 | B44: 0 | C44: 44
A45: 0.09 | B45: 0 | C45: 45
A46: 0.092 | B46: 0 | C46: 46
A47: 0.094 | B47: 0 | C47: 47
A48: 0.096 | B48: 0 | C48: 48
A49: 0.098 | B49: 0 | C49: 49
A50: 0.1 | B50: 0 | C50: 50
A51: 0.102 | B51: 0 | C51: 51
A52: 0.104 | B52: 0 | C52: 52
A53: 0.106 | B53: 0 | C53: 53
A54: 0.108 | B54: 0 | C54: 54
A55: 0.11 | B55: 0 | C55: 55
A56: 0.112 | B56: 0 | C56: 56
A57: 0.114 | B57: 0 | C57: 57
A58: 0.116 | B58: 0 | C58: 58
A59: 0.118 | B59: 0 | C59: 59
A60: 0.12 | B60: 0 | C60: 60
A61: 0.122 | B61: 0 | C61: 61
A62: 0.124 | B62: 0 | C62: 62
A63: 0.126 | B63: 0 | C63: 63
A64: 0.128 | B64: 0 | C64: 64
A65: 0.13 | B65: 0 | C65: 65
A66: =C66/500 -> 0.132 | B66: 0 | C66: 66
A67: 0.134 | B67: 0 | C67: 67
A68: 0.136 | B68: 0 | C68: 68
A69: 0.138 | B69: 0 | C69: 69
A70: 0.14 | B70: 0 | C70: 70
A71: 0.142 | B71: 0 | C71: 71
A72: 0.144 | B72: 0 | C72: 72
A73: 0.146 | B73: 0 | C73: 73
A74: 0.148 | B74: 0 | C74: 74
A75: 0.15 | B75: 0 | C75: 75
A76: 0.152 | B76: 0 | C76: 76
A77: 0.154 | B77: 0 | C77: 77
A78: 0.156 | B78: 0 | C78: 78
A79: 0.158 | B79: 0 | C79: 79
A80: 0.16 | B80: 0 | C80: 80
A81: 0.162 | B81: 0 | C81: 81
A82: 0.164 | B82: 0 | C82: 82
A83: 0.166 | B83: 0 | C83: 83
A84: 0.168 | B84: 0 | C84: 84
A85: 0.17 | B85: 0 | C85: 85
A86: 0.172 | B86: 0 | C86: 86
A87: 0.174 | B87: 0 | C87: 87
A88: 0.176 | B88: 0 | C88: 88
A89: 0.178 | B89: 0 | C89: 89
A90: 0.18 | B90: 0 | C90: 90
A91: 0.182 | B91: 0 | C91: 91
A92: 0.184 | B92: 0 | C92: 92
A93: 0.186 | B93: 0 | C93: 93
A94: 0.188 | B94: 0 | C94: 94
A95: 0.19 | B95: 0 | C95: 95
A96: 0.192 | B96: 0 | C96: 96
A97: 0.194 | B97: 0 | C97: 97
A98: 0.196 | B98: 0 | C98: 98
A99: 0.198 | B99: 0 | C99: 99
A100: 0.2 | B100: 0 | C100: 100
A101: 0.202 | B101: 0 | C101: 101
A102: 0.204 | B102: 0 | C102: 102
A103: 0.206 | B103: 0 | C103: 103
A104: 0.208 | B104: 0 | C104: 104
A105: 0.21 | B105: 0 | C105: 105
A106: 0.212 | B106: 0 | C106: 106
A107: 0.214 | B107: 0 | C107: 107
A108: 0.216 | B108: 0 | C108: 108
A109: 0.218 | B109: 0 | C109: 109
A110: 0.22 | B110: 0 | C110: 110
A111: 0.222 | B111: 0 | C111: 111
A112: 0.224 | B112: 0 | C112: 112
A113: 0.226 | B113: 0 | C113: 113
A114: 0.228 | B114: 0 | C114: 114
A115: 0.23 | B115: 0 | C115: 115
A116: 0.232 | B116: 0 | C116: 116
A117: 0.234 | B117: 0 | C117: 117
A118: 0.236 | B118: 0 | C118: 118
A119: 0.238 | B119: 0 | C119: 119
A120: 0.24 | B120: 0 | C120: 120
A121: 0.242 | B121: 0 | C121: 121
A122: 0.244 | B122: 0 | C122: 122
A123: 0.246 | B123: 0 | C123: 123
A124: 0.248 | B124: 0 | C124: 124
A125: 0.25 | B125: 0 | C125: 125
A126: 0.252 | B126: 0 | C126: 126
A127: 0.254 | B127: 0 | C127: 127
A128: 0.256 | B128: 0 | C128: 128
A129: 0.258 | B129: 0 | C129: 129
A130: =C130/500 -> 0.26 | B130: 0 | C130: 130
A131: 0.262 | B131: 0 | C131: 131
A132: 0.264 | B132: 0 | C132: 132
A133: 0.266 | B133: 0 | C133: 133
A134: 0.268 | B134: 0 | C134: 134
A135: 0.27 | B135: 0 | C135: 135
A136: 0.272 | B136: 0 | C136: 136
A137: 0.274 | B137: 0 | C137: 137
A138: 0.276 | B138: 0 | C138: 138
A139: 0.278 | B139: 0 | C139: 139
A140: 0.28 | B140: 0 | C140: 140
A141: 0.282 | B141: 0 | C141: 141
A142: 0.284 | B142: 0 | C142: 142
A143: 0.286 | B143: 0 | C143: 143
A144: 0.288 | B144: 0 | C144: 144
A145: 0.29 | B145: 0 | C145: 145
A146: 0.292 | B146: 0 | C146: 146
A147: 0.294 | B147: 0 | C147: 147
A148: 0.296 | B148: 0 | C148: 148
A149: 0.298 | B149: 0 | C149: 149
A150: 0.3 | B150: 0 | C150: 150
A151: 0.302 | B151: 0 | C151: 151
A152: 0.304 | B152: 0 | C152: 152
A153: 0.306 | B153: 0 | C153: 153
A154: 0.308 | B154: 0 | C154: 154
A155: 0.31 | B155: 0 | C155: 155
A156: 0.312 | B156: 0 | C156: 156
A157: 0.314 | B157: 0 | C157: 157
A158: 0.316 | B158: 0 | C158: 158
A159: 0.318 | B159: 0 | C159: 159
A160: 0.32 | B160: 0 | C160: 160
A161: 0.322 | B161: 0 | C161: 161
A162: 0.324 | B162: 0 | C162: 162
A163: 0.326 | B163: 0 | C163: 163
A164: 0.328 | B164: 0 | C164: 164
A165: 0.33 | B165: 0 | C165: 165
A166: 0.332 | B166: 0 | C166: 166
A167: 0.334 | B167: 0 | C167: 167
A168: 0.336 | B168: 0 | C168: 168
A169: 0.338 | B169: 0 | C169: 169
A170: 0.34 | B170: 0 | C170: 170
A171: 0.342 | B171: 0 | C171: 171
A172: 0.344 | B172: 0 | C172: 172
A173: 0.346 | B173: 0 | C173: 173
A174: 0.348 | B174: 0 | C174: 174
A175: 0.35 | B175: 0 | C175: 175
A176: 0.352 | B176: 0 | C176: 176
A177: 0.354 | B177: 0 | C177: 177
A178: 0.356 | B178: 0 | C178: 178
A179: 0.358 | B179: 0 | C179: 179
A180: 0.36 | B180: 0 | C180: 180
A181: 0.362 | B181: 0 | C181: 181
A182: 0.364 | B182: 0 | C182: 182
A183: 0.366 | B183: 0 | C183: 183
A184: 0.368 | B184: 0 | C184: 184
A185: 0.37 | B185: 0 | C185: 185
A186: 0.372 | B186: 0 | C186: 186
A187: 0.374 | B187: 0 | C187: 187
A188: 0.376 | B188: 0 | C188: 188
A189: 0.378 | B189: 0 | C189: 189
A190: 0.38 | B190: 0 | C190: 190
A191: 0.382 | B191: 0 | C191: 191
A192: 0.384 | B192: 0 | C192: 192
A193: 0.386 | B193: 0 | C193: 193
A194: =C194/500 -> 0.388 | B194: 0 | C194: 194
A195: 0.39 | B195: 0 | C195: 195
A196: 0.392 | B196: 0 | C196: 196
A197: 0.394 | B197: 0 | C197: 197
A198: 0.396 | B198: 0 | C198: 198
A199: 0.398 | B199: 0 | C199: 199
A200: 0.4 | B200: 0 | C200: 200
... 300 more rows

Sheet Instrucciones
B4: Esta hoja hace una simulación de Montecarlo a partir de las operaciones de la columna A, hoja "datos".
B5: La simulación es para un año de trading.
B6: Hay que rellenar en la pestaña "datos" lo que tenga fondo azul.
B7: El siguiente vídeo en YouTube explica su funcionamiento:
B9: https://youtu.be/REPdDf7_84c
